bitfinex-derivatives/quotes_SOLF0:USTF0_20250311
["timestamp","ask_amount","ask_price","bid_price","bid_amount"]
[1741734095786,29.4,126.26,126.23,0.05885878]
[1741734096091,20.3552293,126.25,126.23,0.05885878]
[1741734096691,7.9228,126.24,126.23,0.05885878]
[1741734097288,28.2777293,126.25,126.23,0.05885878]
[1741734097587,20.3552293,126.25,126.23,0.05885878]
[1741734098001,7.9228,126.24,126.23,0.05885878]
[1741734098292,13.02220867,126.24,126.18,13.02220867]
[1741734098492,7.9241,126.22,126.18,13.02220867]
[1741734099292,0.05437423,126.21,126.19,7.98236548]
[1741734100105,0.05437423,126.21,126.19,0.05696548]
[1741734100286,0.05437423,126.21,126.2,7.9253]
[1741734101990,0.05437423,126.21,126.19,0.05696548]
[1741734102396,50.34750867,126.2,126.19,0.05696548]
[1741734107194,7.9272,126.18,126.14,15.06310867]
[1741734107793,7.9263,126.19,126.14,15.06310867]
[1741734108498,0.050253,126.18,126.15,0.05653217]
[1741734108898,0.050253,126.18,126.17,7.9272]
[1741734111803,7.976953,126.18,126.16,7.9273]
[1741734112405,0.050253,126.18,126.15,0.05653217]
[1741734112704,29.4,126.17,126.15,0.05653217]
[1741734113205,7.9278,126.16,126.15,0.05653217]
[1741734113608,29.4,126.17,126.15,0.05653217]
[1741734114506,7.9278,126.16,126.15,0.05653217]
[1741734114804,29.4,126.17,126.15,0.05653217]
[1741734115104,37.3278,126.17,126.15,0.05653217]
[1741734115901,29.4,126.17,126.13,261.48]
[1741734116105,29.4,126.17,126.12,2.1784]
[1741734116499,7.9289,126.15,126.12,10.1084]
[1741734116702,29.4,126.17,126.1,31.4069]
[1741734116899,7.9291,126.15,126.1,2.0069]
[1741734117105,0.05246524,126.15,126.12,0.06026846]
[1741734117500,7.9291,126.14,126.12,0.06026846]
[1741734118509,0.05246524,126.15,126.12,7.99026846]
[1741734118510,7.98116524,126.15,126.12,7.99026846]
[1741734118911,0.05246524,126.15,126.12,7.99026846]
[1741734119611,0.05246524,126.15,126.12,0.06026846]
[1741734119809,7.9296,126.14,126.12,0.06026846]
[1741734120406,7.9296,126.14,126.12,7.99056846]
[1741734120610,0.05246524,126.15,126.12,7.99056846]
[1741734120805,7.98126524,126.15,126.13,7.9297]
[1741734121012,0.05246524,126.15,126.12,0.06026846]
[1741734121910,7.9291,126.14,126.12,0.06026846]
[1741734122107,29.4,126.14,126.12,0.06026846]
[1741734122310,7.93,126.13,126.08,2.1325]
[1741734122508,7.93,126.13,126.1,7.9315]
[1741734122819,7.93,126.13,126.08,2.1325]
[1741734123012,49.75665391,126.14,126.08,2.1325]
[1741734123013,29.4,126.14,126.08,2.1325]
[1741734123406,0.0593168,126.12,126.1,0.06088409]
[1741734124016,0.0593168,126.12,126.1,7.99188409]
[1741734124308,0.0593168,126.12,126.1,0.06088409]
[1741734124709,0.0593168,126.12,126.11,7.931]
[1741734125218,29.4,126.16,126.1,0.06088409]
[1741734125417,49.75665391,126.16,126.1,0.06088409]
[1741734126018,7.9302,126.13,126.1,7.99218409]
[1741734126518,0.05825635,126.14,126.1,7.99218409]
[1741734126718,7.9304,126.12,126.1,0.06088409]
[1741734127811,7.9304,126.12,126.1,7.99248409]
[1741734128008,29.4,126.13,126.1,7.99248409]
[1741734128218,37.33,126.13,126.1,7.99248409]
[1741734130919,29.4,126.13,126.1,7.99248409]
[1741734131121,7.9305,126.12,126.1,7.99248409]
[1741734131715,29.4,126.13,126.1,0.06088409]
[1741734131918,20.35665391,126.12,126.05,2.0004]
[1741734132124,20.35665391,126.09,126.02,2.0311]
[1741734132316,20.99184526,126.06,126.03,7.9356]
[1741734132515,20.99184526,126.06,126.02,2.0311]
[1741734132722,13.05734526,126.06,126.02,2.0311]
[1741734133037,0.05782415,126.05,126.03,0.05650113]
[1741734133414,7.99282415,126.05,126.03,0.05650113]
[1741734134026,0.05782415,126.05,126.03,0.05650113]
[1741734136317,0.05782415,126.05,126.03,7.99220113]
[1741734136918,0.05782415,126.05,126.03,0.05650113]
[1741734137117,0.05782415,126.05,126.04,7.9354]
[1741734138816,0.05782415,126.05,126.03,7.99240113]
[1741734139221,0.05782415,126.05,126.03,0.05650113]
[1741734139428,29.47782415,126.05,126.03,0.05650113]
[1741734139725,49.88176128,126.05,126.03,0.05650113]
[1741734139922,57.81686128,126.05,126.03,0.05650113]
[1741734140122,29.47782415,126.05,126.03,0.05650113]
[1741734140524,0.05782415,126.05,126.03,0.05650113]
[1741734141027,0.05782415,126.05,126.04,7.9354]
[1741734141429,0.05782415,126.05,126.03,0.05650113]
[1741734142125,7.9354,126.04,126.03,0.05650113]
[1741734143525,7.9364,126.03,125.98,2.1471]
[1741734143720,29.42,126.04,125.98,4.3338]
[1741734143924,29.42,126.04,126.01,7.937]
[1741734144125,37.3557,126.04,126.01,7.937]
[1741734144322,29.42,126.04,125.98,4.3338]
[1741734144525,29.42,126.06,126.04,7.9354]
[1741734144726,0.05379192,126.02,126.0,0.05299787]
[1741734144927,29.42,126.06,126.0,0.05046164]
[1741734145123,0.05969678,126.02,126.01,7.9373]
[1741734145330,29.42,126.06,126.0,0.05046164]
[1741734145521,0.05737879,126.03,126.01,7.937]
[1741734146123,7.99367879,126.03,126.0,0.05046164]
[1741734146336,0.05737879,126.03,126.0,0.05046164]
[1741734146726,0.05737879,126.03,126.0,7.98796164]
[1741734147031,0.05737879,126.03,126.0,0.05046164]
[1741734147331,7.9369,126.02,126.0,0.05046164]
[1741734147930,29.47737879,126.03,126.0,0.05046164]
[1741734148732,37.41377879,126.03,126.0,0.05046164]
[1741734148928,29.47737879,126.03,126.0,0.05046164]
[1741734149934,7.937,126.02,126.0,0.05046164]
[1741734150631,37.41377879,126.03,126.0,7.98806164]
[1741734150932,29.47737879,126.03,126.0,7.98806164]
[1741734151135,49.88131592,126.03,126.0,0.05046164]
[1741734151844,7.9366,126.02,126.0,0.05046164]
[1741734152230,49.88131592,126.03,126.0,0.05046164]
[1741734152430,20.40393713,126.01,125.95,263.7843]
[1741734152730,20.40393713,125.99,125.95,263.7843]
[1741734152934,7.9398,125.97,125.94,7.9412]
[1741734153331,7.9396,125.98,125.92,31.4262]
[1741734153532,0.0504889,125.97,125.94,0.0514393]
[1741734153936,0.0504889,125.97,125.96,7.9404]
[1741734154533,0.0504889,125.97,125.94,0.0514393]
[1741734155230,0.0504889,125.97,125.96,7.9404]
[1741734156028,29.46,126.01,126.0,7.9379]
[1741734156231,49.86393713,126.05,125.96,20.40393713]
[1741734156433,49.86393713,126.05,125.96,2.0992]
[1741734156741,7.9376,126.01,125.98,7.9388]
[1741734157039,49.88393713,126.02,125.97,7.9395]
[1741734157241,49.88393713,126.02,125.96,2.0992]
[1741734157242,20.40393713,126.0,125.98,0.06006026]
[1741734157743,7.9385,125.99,125.98,0.06006026]
[1741734158238,37.5185,125.99,125.98,0.06006026]
[1741734160541,29.58,125.99,125.92,33.6194]
[1741734160935,20.40393713,126.0,125.92,33.6194]
[1741734161242,20.40393713,126.0,125.93,51.95543713]
[1741734161243,7.9382,126.0,125.93,51.95543713]
[1741734161639,0.05450572,125.98,125.95,20.45920381]
[1741734161838,0.05450572,125.98,125.95,0.05526668]
[1741734162143,0.05450572,125.98,125.97,7.9398]
[1741734174652,0.05450572,125.98,125.95,0.05526668]
[1741734174848,13.07216338,125.97,125.95,0.05526668]
[1741734175249,7.9404,125.96,125.95,0.05526668]
[1741734175555,37.7404,125.96,125.95,0.05526668]
[1741734175752,29.8,125.96,125.9,2.0877]
[1741734175953,13.07216338,125.94,125.9,2.0877]
[1741734176955,0.04995117,125.93,125.91,0.06052579]
[1741734177748,0.04995117,125.93,125.92,7.9429]
[1741734178645,7.9401,125.97,125.94,7.9411]
[1741734178950,29.74,125.98,125.9,22.52404241]
[1741734179648,29.74,125.98,125.97,7.9398]
[1741734179855,29.78,126.0,125.92,50.21634241]
[1741734180054,29.8,126.02,125.96,0.05533841]
[1741734180447,0.05827315,126.0,125.99,7.9382]
[1741734183553,0.05827315,126.0,125.98,0.05081262]
[1741734184758,0.05827315,126.0,125.99,7.9385]
[1741734186155,0.05827315,126.0,125.98,7.98961262]
[1741734186353,0.05827315,126.0,125.98,0.05081262]
[1741734186758,7.99677315,126.0,125.98,0.05081262]
[1741734187958,7.9385,125.99,125.98,0.05081262]
[1741734188457,0.05827315,126.0,125.98,0.05081262]
[1741734188957,0.05827315,126.0,125.99,7.9385]
[1741734189351,128.84579242,126.07,125.99,20.43634241]
[1741734189551,37.7344,126.06,126.03,7.9356]
[1741734189857,37.7344,126.06,126.0,2.0827]
[1741734190157,37.7344,126.06,126.04,7.9351]
[1741734190365,0.05407333,126.06,126.04,0.05998284]
[1741734191065,0.05407333,126.06,126.05,7.9345]
[1741734192454,68.67410555,126.1,126.08,7.9327]
[1741734192652,68.67410555,126.1,126.05,22.55474241]
[1741734192952,68.67410555,126.1,126.07,20.43634241]
[1741734193151,52.76390659,126.1,126.08,2.1767]
[1741734193559,52.81617172,126.1,126.09,7.9322]
[1741734194065,6.513e-05,126.1,126.09,7.9322]
[1741734194963,6.513e-05,126.1,126.09,28.36854241]
[1741734196057,43.77512981,126.16,126.09,22.81634241]
[1741734196259,43.77512981,126.16,126.11,20.43634241]
[1741734196656,139.8660248,126.18,126.14,7.9285]
[1741734196657,7.9268,126.18,126.14,7.9285]
[1741734197252,7.9268,126.18,126.11,20.43634241]
[1741734197253,7.98598243,126.17,126.15,0.05669537]
[1741734197664,0.05878243,126.17,126.15,0.05669537]
[1741734197864,0.05878243,126.17,126.15,7.98509537]
[1741734198555,0.05878243,126.17,126.15,0.05669537]
[1741734198858,0.05878243,126.17,126.16,7.9278]
[1741734199164,0.05878243,126.17,126.15,7.98489537]
[1741734202762,0.05878243,126.17,126.16,7.9278]
[1741734204064,0.05878243,126.17,126.15,7.98479537]
[1741734204962,0.05878243,126.17,126.15,0.05669537]
[1741734205969,0.05878243,126.17,126.16,7.9278]
[1741734207774,8.243e-05,126.17,126.16,37.7878]
[1741734208466,8.243e-05,126.17,126.16,39.9078]
[1741734208869,32.35384241,126.25,126.16,34.36]
[1741734209062,11.9175,126.25,126.18,20.43634241]
[1741734209263,11.9175,126.25,126.19,29.84]
[1741734209464,3.9951,126.25,126.19,29.84]
[1741734209760,50.29634241,126.29,126.2,20.43634241]
[1741734209965,50.29634241,126.29,126.23,7.9231]
[1741734210169,7.9215,126.27,126.23,7.9231]
[1741734210365,0.05645761,126.27,126.23,7.9231]
[1741734210561,7.9222,126.25,126.24,0.05214722]
[1741734210770,20.43634241,126.25,126.18,261.62]
[1741734211173,20.43634241,126.23,126.18,269.5463]
[1741734211368,20.43634241,126.23,126.18,261.62]
[1741734211974,0.0500352,126.22,126.19,0.05491926]
[1741734212670,7.9253,126.2,126.19,0.05491926]
[1741734213782,7.9281,126.16,126.13,37.8894]
[1741734213986,20.43634241,126.19,126.13,29.96]
[1741734214385,7.9278,126.17,126.14,7.9289]
[1741734214585,20.43634241,126.19,126.13,29.96]
[1741734214781,20.43634241,126.19,126.11,284.17104241]
[1741734214782,0.05117151,126.17,126.15,0.05607144]
[1741734215582,0.05117151,126.17,126.16,7.9278]
[1741734216078,0.05117151,126.17,126.15,0.05607144]
[1741734216881,7.151e-05,126.17,126.16,37.9278]
[1741734217684,7.151e-05,126.17,126.16,40.3078]
[1741734217889,2.082,126.24,126.22,7.924]
[1741734218284,10.0049,126.24,126.22,7.924]
[1741734218488,2.082,126.24,126.19,30.02]
[1741734218890,2.082,126.24,126.2,7.98213762]
[1741734218891,7.97965187,126.23,126.2,7.98213762]
[1741734219083,0.05565187,126.23,126.2,7.98213762]
[1741734219390,7.9243,126.22,126.2,0.05683762]
[1741734219586,0.05565187,126.23,126.2,0.05683762]
[1741734219984,0.05565187,126.23,126.2,7.98183762]
[1741734220780,7.97935187,126.23,126.2,0.05683762]
[1741734220984,7.97935187,126.23,126.21,7.9246]
[1741734222386,0.05565187,126.23,126.22,7.9241]
[1741734224488,0.05565187,126.23,126.22,37.9041]
[1741734227386,4.1923,126.31,126.22,29.98]
[1741734227788,7.9191,126.3,126.22,29.98]
[1741734228087,4.1923,126.31,126.28,7.9202]
[1741734228289,12.111,126.31,126.28,7.9202]
[1741734228593,12.16949879,126.31,126.28,7.9724593]
[1741734229489,4.25079879,126.31,126.28,0.0522593]
[1741734230094,7.9195,126.3,126.28,0.0522593]
[1741734230689,7.9197,126.29,126.28,0.0522593]
[1741734233890,32.55368863,126.3,126.21,2.168]
[1741734234086,7.9231,126.24,126.21,37.9043]
[1741734234493,29.98,126.29,126.21,29.98]
[1741734234692,7.9238,126.23,126.2,37.905]
[1741734235196,7.97852075,126.23,126.2,37.97822976]
[1741734236894,7.97852075,126.23,126.21,7.9246]
[1741734237293,0.05472075,126.23,126.2,30.05322976]
[1741734237888,0.05472075,126.23,126.21,7.9247]
[1741734238094,0.05472075,126.23,126.2,30.05322976]
[1741734238798,0.05472075,126.23,126.22,7.9241]
[1741734239896,0.05472075,126.23,126.2,30.05322976]
[1741734240093,0.05472075,126.23,126.21,7.9246]
[1741734240094,7.97812075,126.23,126.21,7.9246]
[1741734240810,0.05472075,126.23,126.2,0.05322976]
[1741734241394,0.05472075,126.23,126.2,7.97802976]
[1741734241696,0.05472075,126.23,126.2,0.05322976]
[1741734241906,7.9244,126.22,126.2,0.05322976]
[1741734242096,0.05472075,126.23,126.2,0.05322976]
[1741734242698,0.05472075,126.23,126.11,281.80874668]
[1741734242699,20.34874668,126.21,126.11,281.80874668]
[1741734242902,20.34874668,126.19,126.11,261.46]
[1741734243106,7.9288,126.15,126.11,269.3907]
[1741734243306,20.34874668,126.17,126.11,261.46]
[1741734243601,7.9299,126.13,126.11,261.46]
[1741734243798,7.98881399,126.13,126.11,261.46]
[1741734243999,7.98881399,126.13,126.11,261.51081954]
[1741734244200,0.05891399,126.13,126.11,261.51081954]
[1741734244803,0.05891399,126.13,126.12,7.9303]
[1741734253608,0.05891399,126.13,126.11,269.44151954]
[1741734253912,0.05891399,126.13,126.11,261.51081954]
[1741734254311,0.05891399,126.13,126.12,7.9303]
[1741734256310,0.05891399,126.13,126.11,261.51081954]
[1741734256808,7.9303,126.12,126.11,261.51081954]
[1741734257015,7.9303,126.12,126.11,0.05081954]
[1741734257312,20.40766067,126.13,126.05,293.6997]
[1741734257508,20.34874668,126.13,126.08,7.9323]
[1741734258312,7.9315,126.11,126.09,0.05380248]
[1741734258511,0.05473883,126.12,126.09,0.05380248]
[1741734258917,0.05473883,126.12,126.11,7.931]
[1741734260013,0.05473883,126.12,126.09,0.05380248]
[1741734260211,7.98573883,126.12,126.09,7.98580248]
[1741734260414,0.05473883,126.12,126.09,0.05380248]
[1741734260915,0.05473883,126.12,126.1,7.9312]
[1741734261419,7.98543883,126.12,126.1,7.9315]
[1741734261624,29.96,126.11,126.09,0.05380248]
[1741734261814,50.30874668,126.11,126.05,261.64]
[1741734262012,20.34874668,126.09,126.02,2.0227]
[1741734262213,29.98,126.08,126.02,2.0227]
[1741734262514,7.9339,126.07,126.04,7.9352]
[1741734262913,7.98752701,126.07,126.04,7.98960659]
[1741734263222,7.9341,126.06,126.04,7.98960659]
[1741734264219,0.05362701,126.07,126.04,0.05440659]
[1741734264419,22.59257369,126.07,126.04,0.05440659]
[1741734264619,22.59257369,126.07,125.99,34.1899]
[1741734264821,7.9344,126.06,126.04,7.9353]
[1741734265322,7.9348,126.05,126.02,7.9363]
[1741734265719,7.99150295,126.05,126.02,7.99280095]
[1741734265919,0.05670295,126.05,126.03,7.9357]
[1741734266725,7.99170295,126.05,126.02,7.99280095]
[1741734266919,0.05670295,126.05,126.02,0.05650095]
[1741734267117,30.09670295,126.05,126.02,0.05650095]
[1741734267625,50.44544963,126.05,126.02,0.05650095]
[1741734267824,7.936,126.03,126.02,0.05650095]
[1741734269029,20.34874668,126.03,125.99,7.9385]
[1741734269218,20.34874668,126.03,125.98,261.66]
[1741734269426,30.06,126.02,125.98,261.66]
[1741734269728,7.938,126.0,125.98,261.66]
[1741734270029,32.0853,126.02,125.98,261.66]
[1741734270224,0.04988216,126.0,125.98,0.05207146]
[1741734270824,7.98818216,126.0,125.98,0.05207146]
[1741734271125,0.04988216,126.0,125.92,312.22874668]
[1741734271428,7.9396,125.98,125.92,312.22874668]
[1741734271625,7.9396,125.98,125.92,282.14874668]
[1741734271824,7.9396,125.98,125.95,7.9406]
[1741734272027,20.34874668,125.97,125.92,261.8]
[1741734272327,2.21042594,125.98,125.95,0.05257885]
[1741734272916,2.21042594,125.98,125.95,7.99327885]
[1741734273326,0.05792594,125.98,125.95,0.05257885]
[1741734273631,0.05792594,125.98,125.96,7.9402]
[1741734274725,0.05792594,125.98,125.95,7.99327885]
[1741734275128,0.05792594,125.98,125.95,0.05257885]
[1741734277229,7.9404,125.96,125.95,0.05257885]
[1741734277530,30.26,125.96,125.92,261.8]
[1741734278329,30.26,125.96,125.94,7.9416]
[1741734278530,0.05965915,125.95,125.94,7.9416]
[1741734279724,0.05965915,125.95,125.93,7.99917231]
[1741734280131,0.05965915,125.95,125.94,7.9417]
[1741734280521,0.05965915,125.95,125.93,0.05717231]
[1741734281335,0.05965915,125.95,125.93,7.99927231]
[1741734281540,30.29965915,125.95,125.93,0.05717231]
[1741734281723,232.69749336,125.94,125.79,66.35199383]
[1741734281929,216.52044668,125.94,125.8,6.2874]
[1741734282133,20.34874668,125.89,125.8,6.2874]
[1741734282427,216.52044668,125.94,125.82,7.9487]
[1741734282428,20.34874668,125.87,125.82,7.9487]
[1741734282630,7.947,125.86,125.8,6.2874]
[1741734282831,0.05203008,125.86,125.83,0.05745042]
[1741734283130,7.9477,125.85,125.83,0.05745042]
[1741734283335,31.08,125.84,125.79,66.35199383]
[1741734283930,31.08,125.84,125.79,7.9511]
[1741734284137,39.0283,125.84,125.77,2.094]
[1741734284328,63.85319523,125.84,125.77,2.094]
[1741734284527,0.05401382,125.82,125.79,0.05118962]
[1741734284724,32.42,125.81,125.79,0.05118962]
[1741734286335,32.77319523,125.8,125.74,87.72562025]
[1741734286526,32.77319523,125.78,125.74,87.72562025]
[1741734286728,65.54639046,125.76,125.72,219.19540608]
[1741734286935,32.77319523,125.73,125.72,219.19540608]
[1741734287637,40.72809523,125.73,125.71,0.33975471]
[1741734287842,32.77319523,125.73,125.71,0.33975471]
[1741734288333,35.15319523,125.73,125.59,0.31849669]
[1741734288531,32.77319523,125.68,125.6,6.3038]
[1741734288737,32.77319523,125.68,125.59,0.31849669]
[1741734288738,32.77319523,125.64,125.59,0.31849669]
[1741734288935,32.77319523,125.64,125.55,323.22497798]
[1741734288936,32.77319523,125.61,125.55,14.82918998]
[1741734289131,7.9657,125.56,125.55,14.82918998]
[1741734289335,37.26,125.56,125.55,14.82918998]
[1741734289533,0.05835392,125.57,125.54,323.00868652]
[1741734290133,37.3,125.65,125.54,323.00868652]
[1741734290536,306.45383197,125.56,125.51,2.1047]
[1741734291339,299.91314258,125.56,125.52,0.0576894]
[1741734291535,280.15034258,125.56,125.53,32.77319523]
[1741734291744,165.14209058,125.55,125.54,299.74]
[1741734291936,149.73359058,125.55,125.54,299.74]
[1741734292137,73.47299523,125.67,125.54,299.74]
[1741734292637,0.05267071,125.62,125.59,0.05694793]
[1741734293036,0.05267071,125.62,125.55,32.77319523]
[1741734293340,0.05267071,125.62,125.59,0.05704994]
[1741734295044,38.04693921,125.61,125.59,0.05704994]
[1741734295243,38.04693921,125.61,125.58,37.48]
[1741734295445,38.04693921,125.61,125.58,45.4444]
[1741734295740,38.04693921,125.61,125.58,37.48]
[1741734296441,11.40023921,125.6,125.59,37.38]
[1741734296849,11.40023921,125.6,125.59,45.3438]
[1741734297261,3.921e-05,125.6,125.59,45.3438]
[1741734297442,3.921e-05,125.6,125.59,47.7238]
[1741734297644,674.63647938,125.6,125.59,47.7238]
[1741734297841,2.0564,125.71,125.65,7.9597]
[1741734298039,2.0564,125.71,125.64,37.4]
[1741734298947,39.3414,125.75,125.64,37.4]
[1741734299150,0.05203065,125.69,125.66,0.06101347]
[1741734299548,32.77319523,125.7,125.65,7.9598]
[1741734299753,0.05385837,125.69,125.66,0.05269575]
[1741734299949,0.05385837,125.69,125.62,332.71319523]
[1741734300151,32.77319523,125.73,125.66,0.05858939]
[1741734300453,0.05608743,125.69,125.66,0.05858939]
[1741734302158,0.05608743,125.69,125.67,221.55313439]
[1741734302856,32.82928266,125.69,125.67,221.55313439]
[1741734303480,32.82928266,125.69,125.62,262.58]
[1741734304059,0.05608743,125.69,125.63,37.36]
[1741734304253,0.05608743,125.69,125.63,41.4543]
[1741734304463,0.05608743,125.69,125.65,0.05656011]
[1741734304758,0.05608743,125.69,125.68,7.9581]
[1741734304957,40.72829523,125.73,125.68,7.9581]
[1741734305253,39.4486,125.74,125.68,7.9581]
[1741734305654,37.28,125.75,125.66,128.44111536]
[1741734305853,1.38479904,125.77,125.67,37.26]
[1741734306051,0.05075685,125.72,125.69,0.05503414]
[1741734306255,0.05075685,125.72,125.71,7.9558]
[1741734306960,0.05075685,125.72,125.69,0.05503414]
[1741734309053,32.77319523,125.7,125.69,0.05503414]
[1741734310255,0.05075685,125.72,125.69,0.05503414]
[1741734310658,32.77319523,125.7,125.56,450.39614299]
[1741734310863,32.77319523,125.7,125.59,4.0573]
[1741734311158,45.1164,125.71,125.66,7.9589]
[1741734311364,45.1164,125.71,125.63,37.14]
[1741734311866,0.05901834,125.68,125.66,8.01036167]
[1741734312255,0.05901834,125.68,125.66,0.05136167]
[1741734313655,37.0,125.74,125.66,0.05136167]
[1741734313656,7.955,125.73,125.69,7.957]
[1741734313860,37.0,125.74,125.66,0.05136167]
[1741734314066,37.0,125.74,125.61,299.64]
[1741734314067,32.77319523,125.71,125.61,299.64]
[1741734314363,7.9585,125.68,125.64,7.9606]
[1741734314557,32.77319523,125.71,125.61,299.64]
[1741734314759,0.05784447,125.67,125.65,0.05115271]
[1741734315966,0.05784447,125.67,125.66,7.9594]
[1741734316265,0.05784447,125.67,125.65,37.03115271]
[1741734316966,0.05784447,125.67,125.65,0.05115271]
[1741734318156,7.9594,125.66,125.65,0.05115271]
[1741734318558,0.05784447,125.67,125.65,0.05115271]
[1741734318559,8.01684447,125.67,125.65,0.05115271]
[1741734318970,0.05784447,125.67,125.65,0.05115271]
[1741734319168,7.9594,125.66,125.65,0.05115271]
[1741734319769,0.05784447,125.67,125.65,0.05115271]
[1741734320764,180.16849849,125.66,125.65,8.01115271]
[1741734320961,180.16849849,125.66,125.64,36.84]
[1741734320962,159.47269849,125.66,125.64,34.13838982]
[1741734321166,102.9022091,125.66,125.64,34.13838982]
[1741734321362,64.8929091,125.66,125.64,34.13838982]
[1741734321563,38.8399091,125.66,125.65,7.96]
[1741734321871,38.8399091,125.66,125.64,34.13838982]
[1741734322070,0.05784447,125.67,125.65,7.96]
[1741734322273,0.05784447,125.67,125.64,0.05977177]
[1741734322572,7.96,125.65,125.64,0.05977177]
[1741734322765,0.05784447,125.67,125.64,0.05977177]
[1741734322960,0.05784447,125.67,125.61,262.58]
[1741734323162,7.9619,125.62,125.61,262.58]
[1741734323364,6.1657,125.66,125.56,319.97102763]
[1741734323566,6.1657,125.66,125.57,37.02]
[1741734324066,0.05493091,125.63,125.57,37.02]
[1741734324369,0.05493091,125.63,125.56,356.97102763]
[1741734324570,0.05493091,125.63,125.56,319.97102763]
[1741734324770,7.9636,125.6,125.56,364.91642763]
[1741734324970,32.77319523,125.65,125.56,356.95102763]
[1741734325164,0.05441107,125.59,125.56,356.95102763]
[1741734325361,32.77319523,125.65,125.56,356.95102763]
[1741734325565,0.05747639,125.59,125.56,356.95102763]
[1741734325764,0.05399288,125.59,125.57,7.9651]
[1741734326265,0.05399288,125.59,125.56,356.95102763]
[1741734327071,0.05399288,125.59,125.58,7.9644]
[1741734328372,4.0941,125.66,125.64,7.9603]
[1741734328773,4.0941,125.66,125.61,36.74]
[1741734329570,0.05847774,125.65,125.62,0.05087645]
[1741734329969,8.01887774,125.65,125.62,8.01237645]
[1741734330184,0.05847774,125.65,125.62,0.05087645]
[1741734330474,0.05847774,125.65,125.64,7.9606]
[1741734331576,0.05847774,125.65,125.62,0.05087645]
[1741734332170,0.05847774,125.65,125.64,7.9606]
[1741734335479,0.05847774,125.65,125.62,32.82407168]
[1741734335480,0.05847774,125.65,125.62,36.49087645]
[1741734335877,0.05847774,125.65,125.63,36.44]
[1741734336473,0.05847774,125.65,125.64,7.9606]
[1741734337797,7.774e-05,125.65,125.64,7.9606]
[1741734338080,6.3426,125.74,125.71,7.9557]
[1741734338282,14.2972,125.74,125.67,36.28]
[1741734338676,14.2972,125.74,125.71,7.9561]
[1741734339081,6.3426,125.74,125.72,7.9551]
[1741734339282,6.39745299,125.74,125.72,7.9551]
[1741734339482,4.21095299,125.74,125.72,7.9551]
[1741734339679,4.21095299,125.74,125.73,7.9549]
[1741734339881,0.05485299,125.74,125.73,7.9549]
[1741734340280,0.05485299,125.74,125.72,7.9552]
[1741734340583,0.05485299,125.74,125.71,36.21326922]
[1741734342384,0.05485299,125.74,125.73,7.9549]
[1741734343881,0.05485299,125.74,125.71,0.05326922]
[1741734344187,32.82804822,125.74,125.71,0.05326922]
[1741734344481,32.82804822,125.74,125.64,36.08]
[1741734344482,4.1319,125.73,125.64,36.08]
[1741734344688,32.77319523,125.72,125.64,36.08]
[1741734345582,0.06078783,125.69,125.67,0.05931921]
[1741734347587,0.06078783,125.69,125.63,262.52]
[1741734347986,7.9595,125.66,125.63,262.52]
[1741734348495,32.77319523,125.7,125.63,262.52]
[1741734348995,0.05219995,125.68,125.63,262.52]
[1741734349186,0.05219995,125.68,125.64,35.88]
[1741734349582,0.05219995,125.68,125.67,7.9587]
[1741734353290,0.05219995,125.68,125.66,7.9591]
[1741734353595,0.05219995,125.68,125.64,35.88]
[1741734353991,0.05219995,125.68,125.67,7.9587]
[1741734354391,0.05219995,125.68,125.66,7.9589]
[1741734354988,0.05219995,125.68,125.67,7.9587]
[1741734358800,0.05219995,125.68,125.64,35.88]
[1741734359201,0.05219995,125.68,125.67,7.9587]
[1741734360390,0.05219995,125.68,125.64,35.88]
[1741734361403,0.05219995,125.68,125.67,7.9587]
[1741734363000,9.995e-05,125.68,125.67,7.9587]
[1741734364701,4.1319,125.73,125.72,7.9556]
[1741734366503,0.05689235,125.74,125.71,0.05375949]
[1741734367302,0.05689235,125.74,125.73,7.9549]
[1741734368502,0.05689235,125.74,125.71,8.00965949]
[1741734368703,0.05689235,125.74,125.71,0.05375949]
[1741734369401,67.97008758,125.74,125.64,35.14]
[1741734369598,7.9573,125.7,125.66,7.959]
[1741734370106,67.91319523,125.74,125.63,262.52]
[1741734370406,67.91319523,125.74,125.65,7.9597]
[1741734370603,0.05960795,125.7,125.64,35.18]
[1741734370808,0.05960795,125.7,125.66,7.9589]
[1741734371003,7.9575,125.69,125.66,7.9589]